bitfinex-derivatives/quotes_ETHF0:USTF0_20240915
["timestamp","ask_amount","ask_price","bid_price","bid_amount"]
[1726373478560,1.1987,2422.9,2422.8,1.69168904]
[1726373478860,3.90038528,2422.9,2422.8,1.19]
[1726373479565,3.90038528,2422.9,2422.8,1.69168746]
[1726373482259,3.90038528,2422.9,2422.8,2.21853947]
[1726373484766,1.1987,2422.9,2422.8,2.21853947]
[1726373485458,1.1987,2422.9,2422.8,1.19]
[1726373485766,1.1987,2422.9,2422.8,2.21853699]
[1726373485968,1.1987,2422.9,2422.8,1.19]
[1726373486163,1.1987,2422.9,2422.8,1.71685198]
[1726373486362,1.1987,2422.9,2422.8,2.21853728]
[1726373488365,3.89934129,2422.9,2422.8,2.21853728]
[1726373490166,3.89934129,2422.9,2422.8,2.61973728]
[1726373490368,3.50134129,2422.9,2422.8,2.61973728]
[1726373494578,3.50134129,2422.9,2422.8,3.42242009]
[1726373495073,3.50134129,2422.9,2422.8,2.61973728]
[1726373495770,3.50134129,2422.9,2422.8,2.0928853]
[1726373495965,3.50134129,2422.9,2422.8,2.11804567]
[1726373496374,3.50134129,2422.9,2422.8,2.61972727]
[1726373497783,0.8007,2422.9,2422.8,2.61972727]
[1726373498069,3.50227315,2422.9,2422.8,1.02852727]
[1726373498270,0.8007,2422.9,2422.8,1.02852727]
[1726373498871,0.8007,2422.9,2422.8,0.50168668]
[1726373499074,0.8007,2422.9,2422.8,1.02853917]
[1726373499278,0.8007,2422.9,2422.7,4.3978]
[1726373499475,2.70163962,2422.8,2422.7,4.81041]
[1726373499775,2.70163962,2422.8,2422.7,5.33726679]
[1726373500175,3.10333962,2422.8,2422.7,5.33726679]
[1726373500476,3.10333962,2422.8,2422.7,7.03985892]
[1726373501378,3.10333962,2422.8,2422.7,6.62724892]
[1726373502780,3.10333962,2422.8,2422.7,6.62724962]
[1726373502976,3.10333962,2422.8,2422.7,6.62725017]
[1726373503872,3.10333962,2422.8,2422.7,7.47022013]
[1726373504079,3.10333962,2422.8,2422.7,8.55292368]
[1726373504279,0.4017,2422.8,2422.7,8.55292368]
[1726373505866,3.10333962,2422.8,2422.7,8.55292368]
[1726373506071,0.4017,2422.8,2422.7,5.87870355]
[1726373506272,3.10333962,2422.8,2422.7,5.87870355]
[1726373506466,3.10333962,2422.8,2422.7,7.24851964]
[1726373506667,3.10333962,2422.8,2422.7,8.09148849]
[1726373506868,3.10333962,2422.8,2422.7,10.44958036]
[1726373507172,3.10333962,2422.8,2422.7,13.3996366]
[1726373507371,3.10333962,2422.8,2422.7,10.69352407]
[1726373507566,3.10333962,2422.8,2422.7,13.90132407]
[1726373508389,0.4017,2422.8,2422.7,13.90132407]
[1726373508785,3.10333962,2422.8,2422.7,13.90132407]
[1726373509078,0.4017,2422.8,2422.7,13.90132407]
[1726373509282,3.10333962,2422.8,2422.7,14.31393407]
[1726373509481,3.10333962,2422.8,2422.7,8.96552536]
[1726373509782,3.10333962,2422.8,2422.7,9.4583508]
[1726373509783,0.4017,2422.8,2422.7,9.4583508]
[1726373510082,3.10333962,2422.8,2422.7,5.75771532]
[1726373510380,3.10333962,2422.8,2422.7,8.55290532]
[1726373510682,3.10333962,2422.8,2422.7,9.04574406]
[1726373511476,3.10333962,2422.8,2422.7,5.83794406]
[1726373511671,3.10333962,2422.8,2422.7,9.45835406]
[1726373512382,3.10333962,2422.8,2422.7,10.46172411]
[1726373512584,3.10333962,2422.8,2422.7,7.25392411]
[1726373512785,3.10333962,2422.8,2422.7,10.46172404]
[1726373513182,3.10333962,2422.8,2422.7,9.45835406]
[1726373513480,3.10333962,2422.8,2422.7,6.25055406]
[1726373513680,3.10333962,2422.8,2422.7,10.46172384]
[1726373516484,3.10333962,2422.8,2422.7,9.9688851]
[1726373516687,3.10333962,2422.8,2422.7,8.15394854]
[1726373516890,3.10333962,2422.8,2422.7,10.46168836]
[1726373517180,3.10333962,2422.8,2422.7,10.46169609]
[1726373517981,3.10333962,2422.8,2422.7,9.27169609]
[1726373518287,3.10333962,2422.8,2422.7,10.46169609]
[1726373519186,3.10333962,2422.8,2422.7,11.74846437]
[1726373519383,3.10333962,2422.8,2422.7,10.46169609]
[1726373519893,3.10333962,2422.8,2422.7,11.33586421]
[1726373520092,3.10333962,2422.8,2422.7,5.25308609]
[1726373520290,4.5289,2422.8,2422.7,0.5268549]
[1726373520496,10.9415,2422.8,2422.7,1.83124502]
[1726373520684,13.76966954,2422.8,2422.7,0.50168851]
[1726373521378,10.5289,2422.8,2422.7,0.50168851]
[1726373521780,10.5289,2422.8,2422.6,0.096]
[1726373521781,13.76966954,2422.8,2422.6,0.096]
[1726373522095,4.128,2422.7,2422.6,0.096]
[1726373522290,4.128,2422.7,2422.6,0.50172105]
[1726373522788,4.128,2422.7,2422.6,0.50173084]
[1726373522988,4.54061,2422.7,2422.6,0.50173084]
[1726373523191,4.54061,2422.7,2422.4,1.286]
[1726373523405,2.70166859,2422.5,2422.4,0.096]
[1726373523598,6.54424,2422.6,2422.4,0.096]
[1726373523599,9.78500954,2422.6,2422.4,0.096]
[1726373523893,7.74896954,2422.5,2422.4,0.096]
[1726373524096,4.5082,2422.5,2422.4,0.096]
[1726373528490,7.20460522,2422.5,2422.4,0.096]
[1726373532697,6.66417282,2422.5,2422.4,0.096]
[1726373534103,9.87197282,2422.5,2422.4,0.096]
[1726373535104,6.66417282,2422.5,2422.4,0.096]
[1726373535304,9.87197282,2422.5,2422.4,0.096]
[1726373536199,5.36377282,2422.5,2422.4,1.286]
[1726373536597,3.2078,2422.5,2422.4,1.286]
[1726373537697,4.82460439,2422.5,2422.4,1.286]
[1726373538902,3.2078,2422.5,2422.4,1.286]
[1726373543399,2.96957282,2422.6,2422.4,1.286]
[1726373543600,6.17737282,2422.6,2422.4,1.286]
[1726373543802,6.17737282,2422.6,2422.5,0.4106]
[1726373548914,4.0214,2422.6,2422.5,0.4106]
[1726373550515,6.17749984,2422.6,2422.5,0.4106]
[1726373552213,2.96969984,2422.6,2422.5,0.4106]
[1726373552414,6.17749984,2422.6,2422.5,0.4106]
[1726373553611,6.17749984,2422.6,2422.5,1.6006]
[1726373553922,2.96969984,2422.6,2422.5,1.6006]
[1726373561122,2.97195979,2422.6,2422.5,1.6006]
[1726373561519,0.8136,2422.6,2422.5,1.6006]
[1726373562126,3.51000522,2422.6,2422.5,1.6006]
[1726373565422,0.8136,2422.6,2422.5,1.6006]
[1726373568223,0.8136,2422.6,2422.5,2.10233958]
[1726373568928,0.8136,2422.6,2422.5,1.6006]
[1726373569825,0.8136,2422.6,2422.5,2.10233971]
[1726373570025,0.8136,2422.6,2422.5,2.60407935]
[1726373570523,0.8136,2422.6,2422.5,2.10233964]
[1726373572826,0.8136,2422.6,2422.5,1.6006]
[1726373573032,0.8136,2422.6,2422.5,2.10233981]
[1726373576735,0.8136,2422.6,2422.5,1.6006]
[1726373576936,0.8136,2422.6,2422.5,2.10233973]
[1726373580237,0.8136,2422.6,2422.5,1.6006]
[1726373580421,0.8136,2422.6,2422.5,0.4106]
[1726373580824,0.8136,2422.6,2422.5,0.91233941]
[1726373582333,0.8136,2422.6,2422.5,0.4106]
[1726373582730,0.8136,2422.6,2422.5,0.9123391]
[1726373585431,1.22623,2422.6,2422.5,0.9123391]
[1726373586036,1.22623,2422.6,2422.5,0.91234047]
[1726373589227,1.22623,2422.6,2422.5,0.4106]
[1726373589428,1.22623,2422.6,2422.5,0.91234068]
[1726373589944,1.22623,2422.6,2422.5,0.4106]
[1726373590344,1.22623,2422.6,2422.5,0.91234052]
[1726373592951,1.22623,2422.6,2422.5,0.4106]
[1726373593251,1.22623,2422.6,2422.5,0.91234071]
[1726373594447,1.22623,2422.6,2422.5,1.43928065]
[1726373603960,1.22623,2422.6,2422.5,1.43928876]
[1726373604257,1.22623,2422.6,2422.5,1.96623687]
[1726373604457,1.22623,2422.6,2422.5,2.46797734]
[1726373607666,1.22623,2422.6,2422.5,1.4392977]
[1726373607952,1.22623,2422.6,2422.5,1.9662411]
[1726373608159,1.22623,2422.6,2422.5,2.46798275]
[1726373610255,1.22623,2422.6,2422.5,1.9662331]
[1726373610454,1.22623,2422.6,2422.5,1.43928505]
[1726373611863,1.22623,2422.6,2422.5,0.93754086]
[1726373612058,1.22623,2422.6,2422.5,1.43928248]
[1726373617663,0.8136,2422.6,2422.5,1.43928248]
[1726373618357,0.8136,2422.6,2422.5,0.91234162]
[1726373618555,0.8136,2422.6,2422.5,1.43928121]
[1726373618863,0.8136,2422.6,2422.5,1.43928088]
[1726373619056,1.22623,2422.6,2422.5,1.43928088]
[1726373621955,1.22623,2422.6,2422.5,0.4106]
[1726373622161,1.22623,2422.6,2422.5,0.9375423]
[1726373622357,1.22623,2422.6,2422.5,0.4106]
[1726373622562,1.22623,2422.6,2422.5,1.43928429]
[1726373624357,4.46699954,2422.6,2422.5,1.43928429]
[1726373624563,1.22623,2422.6,2422.5,1.43928429]
[1726373625052,1.22623,2422.6,2422.5,2.24207687]
[1726373625256,1.22623,2422.6,2422.5,1.43928429]
[1726373625766,1.22623,2422.6,2422.5,1.43928004]
[1726373626065,1.22623,2422.6,2422.5,2.24205981]
[1726373626271,1.22623,2422.6,2422.5,1.43928004]
[1726373627067,1.22623,2422.6,2422.5,2.24206354]
[1726373627264,1.22623,2422.6,2422.5,2.24206382]
[1726373628068,1.22623,2422.6,2422.5,2.24205894]
[1726373628963,1.22623,2422.6,2422.5,1.71511727]
[1726373629166,1.22623,2422.6,2422.5,1.43927562]
[1726373629467,1.22623,2422.6,2422.5,2.2420578]
[1726373629773,1.22623,2422.6,2422.5,2.24205867]
[1726373630160,1.22623,2422.6,2422.5,1.43927562]
[1726373631369,1.22623,2422.6,2422.5,2.24206156]
[1726373631770,1.22623,2422.6,2422.5,2.24205969]
[1726373631965,1.22623,2422.6,2422.5,1.43927706]
[1726373632165,1.22623,2422.6,2422.5,2.24206114]
[1726373632866,1.22623,2422.6,2422.5,0.93753676]
[1726373633475,1.22623,2422.6,2422.5,2.24204714]
[1726373634265,1.22623,2422.6,2422.5,1.43927152]
[1726373635271,1.22623,2422.6,2422.5,2.24204981]
[1726373635875,1.22623,2422.6,2422.5,0.93753676]
[1726373636068,1.22623,2422.6,2422.5,0.93753377]
[1726373636262,1.22623,2422.6,2422.5,2.24204851]
[1726373636766,1.22623,2422.6,2422.5,1.43927021]
[1726373641772,1.22623,2422.6,2422.5,0.93753377]
[1726373642171,1.22623,2422.6,2422.5,1.43927747]
[1726373642573,1.22623,2422.6,2422.5,0.93753377]
[1726373642778,1.22623,2422.6,2422.5,1.43927747]
[1726373645381,1.22623,2422.6,2422.5,0.4106]
[1726373645776,1.22623,2422.6,2422.5,0.93754543]
[1726373645976,1.22623,2422.6,2422.5,1.43929027]
[1726373646983,0.8136,2422.6,2422.5,1.43929027]
[1726373648782,0.8136,2422.6,2422.5,0.4106]
[1726373649185,0.8136,2422.6,2422.5,0.93754523]
[1726373649380,1.22623,2422.6,2422.5,1.4392897]
[1726373652186,1.22623,2422.6,2422.5,1.43928417]
[1726373652779,1.22623,2422.6,2422.5,1.43928313]
[1726373652981,1.22623,2422.6,2422.5,1.43927906]
[1726373655789,1.22623,2422.6,2422.5,0.4106]
[1726373655983,1.22623,2422.6,2422.5,0.93753923]
[1726373656188,1.22623,2422.6,2422.5,1.43928009]
[1726373657487,4.46699954,2422.6,2422.5,0.50174086]
[1726373663498,4.46699954,2422.6,2422.5,0.5017461]
[1726373664196,4.46699954,2422.6,2422.5,0.50174592]
[1726373670098,4.46699954,2422.6,2422.5,0.50175011]
[1726373670601,4.46699954,2422.6,2422.5,0.50175018]
[1726373673519,4.46699954,2422.6,2422.4,1.286]
[1726373673705,0.3744,2422.5,2422.4,1.286]
[1726373674202,0.3744,2422.5,2422.4,1.78775196]
[1726373676212,0.3744,2422.5,2422.4,2.31470204]
[1726373676814,0.3744,2422.5,2422.4,1.78775196]
[1726373677006,0.3744,2422.5,2422.4,2.31469756]
[1726373677213,0.3744,2422.5,2422.4,1.78775196]
[1726373677408,0.3744,2422.5,2422.4,2.31469869]
[1726373677814,0.3744,2422.5,2422.4,2.31470131]
[1726373679016,0.3744,2422.5,2422.4,1.78775196]
[1726373679418,0.3744,2422.5,2422.4,2.31469915]
[1726373680316,0.3744,2422.5,2422.4,1.81294719]
[1726373680502,0.3744,2422.5,2422.4,2.3146926]
[1726373683828,0.3744,2422.5,2422.4,1.286]
[1726373684120,0.3744,2422.5,2422.4,1.81294631]
[1726373684417,0.3744,2422.5,2422.4,2.31469174]
[1726373687223,0.3744,2422.5,2422.4,1.78774578]
[1726373687516,0.3744,2422.5,2422.4,2.31468937]
[1726373690723,0.3744,2422.5,2422.4,1.286]
[1726373690919,0.3744,2422.5,2422.4,1.81295138]
[1726373691119,0.3744,2422.5,2422.4,2.31470021]
[1726373694021,0.3744,2422.5,2422.4,1.78774883]
[1726373694232,0.3744,2422.5,2422.4,2.31469662]
[1726373694524,0.3744,2422.5,2422.4,1.78774732]
[1726373694719,0.3744,2422.5,2422.4,1.81294927]
[1726373695222,0.3744,2422.5,2422.4,2.81644389]
[1726373697214,1.22623,2422.6,2422.4,3.61923274]
[1726373697412,1.22623,2422.6,2422.5,0.50174733]
[1726373697618,1.22623,2422.6,2422.5,0.89424733]
[1726373698724,1.22623,2422.6,2422.5,0.89424344]
[1726373700925,1.22623,2422.6,2422.5,0.3925]
[1726373701134,1.22623,2422.6,2422.5,0.89424413]
[1726373703632,1.22623,2422.6,2422.5,0.3925]
[1726373703831,1.22623,2422.6,2422.5,0.89424415]
[1726373704231,1.22623,2422.6,2422.5,0.3925]
[1726373704426,1.22623,2422.6,2422.5,0.89424416]
[1726373707136,1.22623,2422.6,2422.5,0.3925]
[1726373707330,1.22623,2422.6,2422.5,0.89424416]
[1726373710335,1.22623,2422.6,2422.5,0.89424394]
[1726373713831,2.70535129,2422.6,2422.5,12.35195032]
[1726373714031,2.16444783,2422.6,2422.5,24.21860234]
[1726373714239,1.62245774,2422.6,2422.5,23.72035793]
[1726373714535,1.62245774,2422.6,2422.5,24.21782547]
[1726373716537,1.62245774,2422.6,2422.5,22.59273671]
[1726373717139,1.08084907,2422.6,2422.5,12.42198913]
[1726373717340,1.08084907,2422.6,2422.5,14.28466052]
[1726373717537,1.08084907,2422.6,2422.5,15.36655524]
[1726373717735,1.08084907,2422.6,2422.5,17.67432662]
[1726373718238,1.08084907,2422.6,2422.5,16.38831733]
[1726373718551,1.08084907,2422.6,2422.5,14.89209724]
[1726373718940,1.08084907,2422.6,2422.5,18.09989724]
[1726373720441,1.08084907,2422.6,2422.5,15.42567456]
[1726373720628,1.08084907,2422.6,2422.5,15.95253243]
[1726373721036,1.08084907,2422.6,2422.5,17.25692487]
[1726373721544,1.08084907,2422.6,2422.5,14.04912487]
[1726373721736,1.08084907,2422.6,2422.5,17.25692487]
[1726373723546,1.08084907,2422.6,2422.5,16.17503015]
[1726373723943,1.08084907,2422.6,2422.5,15.64817228]
[1726373724149,1.08084907,2422.7,2422.6,0.41263]
[1726373724347,1.08084907,2422.7,2422.6,0.93948765]
[1726373724545,1.08084907,2422.7,2422.6,9.96942465]
[1726373725443,1.08084907,2422.7,2422.6,9.442567]
[1726373729049,0.096,2422.9,2422.7,0.41261]
[1726373729248,0.096,2422.9,2422.8,0.3989]
[1726373729451,1.59136,2423.0,2422.8,0.3989]
[1726373729642,1.59136,2423.0,2422.9,1.19]
[1726373734556,0.4126,2422.8,2422.6,0.096]
[1726373734755,0.7833,2422.7,2422.6,0.096]
[1726373734955,0.7833,2422.7,2422.5,1.60264]
[1726373734956,1.1961,2422.7,2422.5,1.60264]
[1726373735850,1.1961,2422.7,2422.5,1.19]
[1726373736146,1.1961,2422.7,2422.4,1.99803536]
[1726373736147,4.128,2422.6,2422.4,1.17678536]
[1726373736346,3.62045,2422.5,2422.4,1.17678536]
[1726373736646,7.74845,2422.5,2422.4,1.17678536]
[1726373737453,7.74845,2422.5,2422.4,0.096]
[1726373741846,10.44731458,2422.5,2422.4,0.096]
[1726373744255,7.74845,2422.5,2422.4,0.096]
[1726373745150,10.44731458,2422.5,2422.4,0.096]
[1726373745553,7.74845,2422.5,2422.4,0.096]
[1726373745748,10.44731458,2422.5,2422.4,0.096]
[1726373745958,7.74845,2422.5,2422.4,0.096]
[1726373750846,4.54065,2422.5,2422.4,0.096]
[1726373754263,6.70014193,2422.5,2422.4,0.096]
[1726373754757,4.54065,2422.5,2422.4,0.096]
[1726373754963,6.70018214,2422.5,2422.4,0.096]
[1726373755362,6.70012889,2422.5,2422.4,0.096]
[1726373755564,6.70011105,2422.5,2422.4,0.096]
[1726373755856,6.70012779,2422.5,2422.4,0.096]
[1726373759968,2.57212779,2422.5,2422.4,0.096]
[1726373760774,2.95282779,2422.5,2422.4,0.096]
[1726373763481,2.95291344,2422.5,2422.4,0.096]
[1726373763783,2.95286209,2422.5,2422.4,0.096]
[1726373764083,0.79335,2422.5,2422.4,0.096]
[1726373764479,2.95306166,2422.5,2422.4,0.096]
[1726373764787,0.79335,2422.5,2422.4,0.096]
[1726373764978,2.95303045,2422.5,2422.4,0.096]
[1726373765376,2.95317639,2422.5,2422.4,0.096]
[1726373765588,0.79335,2422.5,2422.4,0.096]
[1726373765882,2.95318898,2422.5,2422.4,0.096]
[1726373766083,0.79335,2422.5,2422.4,0.096]
[1726373769278,3.49221458,2422.5,2422.4,0.096]
[1726373769574,5.90666458,2422.6,2422.4,1.286]
[1726373769779,5.36868753,2422.6,2422.5,1.21325]
[1726373770089,4.82855683,2422.6,2422.5,1.61315]
[1726373770384,3.2078,2422.6,2422.5,1.2005]
[1726373770688,4.82878887,2422.6,2422.5,1.61315]
[1726373771382,4.82878887,2422.6,2422.5,2.11486101]
[1726373772689,4.82878887,2422.6,2422.5,1.61315]
[1726373772884,4.82878887,2422.6,2422.5,2.11485488]
[1726373773083,1.08079274,2422.6,2422.5,5.32265488]
[1726373773288,1.08082478,2422.6,2422.5,5.32265488]
[1726373773784,1.62098887,2422.6,2422.5,5.32265488]
[1726373773988,1.0806821,2422.6,2422.5,5.32265488]
[1726373774185,1.08063579,2422.6,2422.5,5.32265488]
[1726373776190,1.08063579,2422.6,2422.5,5.32264494]
[1726373776390,1.08063579,2422.6,2422.5,5.84950814]
[1726373776699,1.08063579,2422.6,2422.5,6.35120029]
[1726373777194,1.08063579,2422.6,2422.5,6.32603175]
[1726373777382,1.08063579,2422.6,2422.5,6.85289442]
[1726373777588,1.08063579,2422.6,2422.5,10.98089442]
[1726373777789,1.08063579,2422.6,2422.5,11.78359091]
[1726373778087,1.08063579,2422.7,2422.6,0.41263]
[1726373778288,2.25688753,2422.9,2422.7,0.41261]
[1726373778606,2.25688753,2422.9,2422.8,1.19]
[1726373778794,2.16088753,2422.9,2422.8,1.5627]
[1726373779483,3.84336458,2423.0,2422.8,1.5627]
[1726373779688,4.25592458,2423.0,2422.8,1.5627]
[1726373779889,2.16142254,2422.9,2422.8,0.3727]
[1726373781402,2.16131465,2422.9,2422.8,0.3727]
[1726373786702,2.16131465,2422.9,2422.7,1.19]
[1726373786899,1.62040943,2422.8,2422.7,1.19]
[1726373790513,2.03300943,2422.8,2422.6,0.505]
[1726373790713,2.02890943,2422.7,2422.6,0.096]
[1726373790912,2.02890943,2422.7,2422.5,3.2078]
[1726373791117,2.42880943,2422.6,2422.5,3.2078]
[1726373793113,1.9984,2422.6,2422.4,0.096]
[1726373793314,3.62045,2422.5,2422.4,0.096]
[1726373793729,6.31931458,2422.5,2422.4,0.096]
[1726373794826,2.159427,2422.5,2422.4,0.096]
[1726373795124,2.572077,2422.5,2422.4,0.096]
[1726373797825,0.41265,2422.5,2422.4,0.096]
[1726373798420,2.57227311,2422.5,2422.4,0.096]
[1726373799115,2.57227311,2422.5,2422.4,1.286]
[1726373799116,2.1596694,2422.5,2422.4,1.286]
[1726373799316,2.9680694,2422.6,2422.4,1.286]
[1726373799518,1.61987322,2422.5,2422.4,1.286]
[1726373799818,2.9680694,2422.6,2422.4,1.286]
[1726373800329,2.9680694,2422.6,2422.5,0.3786]
[1726373802129,2.9680694,2422.6,2422.4,1.286]
[1726373804131,2.1596694,2422.5,2422.4,1.286]
[1726373804725,2.9680694,2422.6,2422.4,1.286]
[1726373804926,2.1596694,2422.5,2422.4,1.286]
[1726373806328,2.9680694,2422.6,2422.4,1.286]
[1726373809233,2.1596694,2422.5,2422.4,1.286]
[1726373809829,2.1596694,2422.5,2422.4,0.096]
[1726373823845,3.91989458,2422.6,2422.4,0.096]
[1726373828248,2.69886458,2422.5,2422.4,0.096]
[1726373830048,3.11151458,2422.5,2422.4,0.096]
[1726373830254,2.69886458,2422.5,2422.4,0.096]
[1726373834151,0.41265,2422.5,2422.4,0.096]
[1726373835245,0.41265,2422.5,2422.4,0.59775201]
[1726373835847,1.22104,2422.6,2422.4,0.59775201]
[1726373836049,1.22104,2422.6,2422.4,0.096]
[1726373836845,4.46029614,2422.6,2422.4,0.096]
[1726373847455,7.66809614,2422.6,2422.4,0.096]
[1726373856064,0.79835,2422.5,2422.4,0.096]
[1726373856256,0.3857,2422.5,2422.4,0.096]
[1726373857657,0.3857,2422.5,2422.4,0.59775578]
[1726373857864,0.3857,2422.5,2422.4,0.096]
[1726373858255,0.3857,2422.5,2422.4,0.597754]
[1726373858460,0.3857,2422.5,2422.4,0.096]
[1726373858662,0.3857,2422.5,2422.4,0.59775376]
[1726373859175,0.3857,2422.5,2422.4,0.096]
[1726373859669,0.3857,2422.5,2422.4,0.59775604]
[1726373859870,0.3857,2422.5,2422.4,0.096]
[1726373860068,0.3857,2422.5,2422.4,0.59775782]
[1726373860271,0.3857,2422.5,2422.4,0.096]
[1726373860462,0.3857,2422.5,2422.4,0.5977556]
[1726373860664,0.3857,2422.5,2422.4,0.59775716]
[1726373860866,0.3857,2422.5,2422.4,0.096]
[1726373862071,1.98835,2422.5,2422.4,0.096]
[1726373862369,6.11635,2422.5,2422.4,0.096]
[1726373862769,9.89548216,2422.5,2422.4,0.096]
[1726373862969,6.11635,2422.5,2422.4,0.096]
[1726373865579,9.32415,2422.5,2422.4,0.096]
[1726373866973,12.56517154,2422.5,2422.4,0.096]
[1726373867775,12.56503324,2422.5,2422.4,0.096]
[1726373868075,9.32415,2422.5,2422.4,0.096]
[1726373868272,12.56477738,2422.5,2422.4,0.096]
[1726373868574,9.32415,2422.5,2422.4,0.096]
[1726373868970,12.5649034,2422.5,2422.4,0.096]
[1726373870171,18.5649034,2422.5,2422.4,0.096]
[1726373870374,15.32415,2422.5,2422.4,0.096]
[1726373870568,0.41272,2422.1,2421.9,0.096]
[1726373870873,0.41272,2422.1,2421.7,0.509]
[1726373870874,3.48736502,2422.0,2421.7,0.509]
[1726373871071,2.16019612,2421.8,2421.7,0.82578]
[1726373871271,2.16019612,2421.9,2421.7,2.6575659]
[1726373871473,2.16019612,2421.9,2421.8,0.5018197]
[1726373872074,3.48736502,2422.0,2421.8,0.5018197]
[1726373872271,3.48736502,2422.0,2421.7,0.82578]
[1726373872272,2.15948132,2421.9,2421.7,0.82578]
[1726373872479,2.15948132,2421.9,2421.8,0.50182481]
[1726373872785,2.15948132,2421.9,2421.8,0.50182547]
[1726373872978,3.48736502,2422.0,2421.8,0.50182547]
[1726373873180,3.48736502,2422.0,2421.7,0.413]
[1726373873386,2.15945321,2421.8,2421.7,0.413]
[1726373873680,2.15945321,2421.8,2421.7,0.91483165]
[1726373874185,2.15945321,2421.8,2421.7,0.413]
[1726373874377,2.15945321,2421.8,2421.7,0.91482672]
[1726373874892,2.15945321,2421.8,2421.7,0.413]
[1726373875184,2.15945321,2421.8,2421.7,0.91482977]
[1726373876374,2.57225321,2421.9,2421.7,0.91482977]
[1726373876684,2.57225321,2421.9,2421.7,0.413]
[1726373877277,2.15945321,2421.8,2421.7,0.413]
[1726373878077,4.71592502,2421.9,2421.7,0.413]
[1726373878276,4.71592502,2421.9,2421.4,1.69883]
[1726373878477,1.61793769,2421.6,2421.5,0.88514855]
[1726373878878,1.61793769,2421.6,2421.5,0.3833]
[1726373879177,1.61793769,2421.6,2421.5,1.98612]
[1726373879377,1.07848503,2421.6,2421.5,2.07513682]
[1726373880483,1.61793769,2421.6,2421.5,2.60222826]
[1726373882484,1.61793769,2421.6,2421.5,3.01504826]
[1726373883183,1.61793769,2421.7,2421.5,3.01504826]
[1726373883385,1.61793769,2421.7,2421.6,1.25823682]
[1726373883579,2.98280026,2421.9,2421.6,1.67103682]
[1726373883778,2.57005026,2421.9,2421.7,1.19]
[1726373884176,2.15725026,2421.9,2421.8,1.5972]
[1726373884386,2.15725026,2422.0,2421.8,2.09900754]
[1726373884588,2.15725026,2422.0,2421.8,1.5972]
[1726373884779,2.56997026,2422.1,2421.8,1.5972]
[1726373886291,1.617234,2421.9,2421.8,1.5972]
[1726373886494,2.56997026,2422.1,2421.8,2.51176396]
[1726373886681,2.56997026,2422.1,2421.8,2.00996]
[1726373886876,1.61721988,2421.9,2421.8,2.00996]
[1726373887081,1.61723597,2421.9,2421.8,2.00996]
[1726373887283,2.56997026,2422.1,2421.8,2.09900604]
[1726373887578,1.61723209,2421.9,2421.8,1.5972]
[1726373887785,2.56997026,2422.1,2421.8,2.09900539]
[1726373887988,1.61722561,2421.9,2421.8,1.5972]
[1726373888188,1.61722561,2421.9,2421.8,2.09900436]
[1726373890288,2.56997026,2422.1,2421.8,1.5972]
[1726373890489,1.61735254,2421.9,2421.8,2.00997]
[1726373891098,1.61735254,2421.9,2421.8,1.5972]
[1726373896399,2.15725026,2422.0,2421.8,1.5972]
[1726373896598,2.54035026,2422.0,2421.8,1.5972]
[1726373898501,2.91605026,2422.0,2421.8,1.5972]
[1726373902304,2.15725026,2421.9,2421.8,1.5972]
[1726373902501,2.15725026,2421.9,2421.8,2.00997]
[1726373903902,2.15725026,2421.9,2421.8,2.51177915]
[1726373904097,2.91605026,2422.0,2421.8,2.00997]
[1726373904301,2.15725026,2421.9,2421.8,2.00997]
[1726373904697,2.15725026,2421.9,2421.8,2.51177773]
[1726373907503,2.15725026,2421.9,2421.8,2.51177839]
[1726373908898,2.15725026,2421.9,2421.8,3.03881861]
[1726373910614,3.45916502,2422.0,2421.9,0.41275]
[1726373910615,2.91605026,2422.0,2421.9,0.41275]
[1726373910905,2.91605026,2422.0,2421.9,0.91455839]
[1726373911110,2.91605026,2422.0,2421.9,1.44159065]
[1726373912417,0.7588,2422.0,2421.9,1.44159065]
[1726373914809,0.7588,2422.0,2421.9,0.93978321]
[1726373915016,0.7588,2422.0,2421.9,1.44158329]
[1726373915815,0.7588,2422.0,2421.9,0.93978321]
[1726373916010,0.7588,2422.0,2421.9,1.44158407]
[1726373919018,0.7588,2422.0,2421.9,2.24446533]
[1726373919313,0.7588,2422.0,2421.9,1.44158407]
[1726373919618,2.91992501,2422.0,2421.9,2.2444462]
[1726373920211,0.7588,2422.0,2421.9,1.44158407]
[1726373920608,2.91989892,2422.0,2421.9,2.24444257]
[1726373921820,0.7588,2422.0,2421.9,0.93978321]
[1726373922118,0.7588,2422.0,2421.9,1.44157575]
[1726373922419,2.91980041,2422.0,2421.9,2.24444433]
[1726373923206,0.7588,2422.0,2421.9,1.44157575]
[1726373925222,0.7588,2422.0,2421.9,2.24445076]
[1726373925420,0.7588,2422.0,2421.9,0.41275]
[1726373925623,0.7588,2422.0,2421.9,0.93977554]
[1726373925922,0.7588,2422.0,2421.9,1.71742201]
[1726373926123,0.7588,2422.0,2421.9,2.24445038]
[1726373926421,0.7588,2422.0,2421.9,0.93977837]
[1726373926623,0.7588,2422.0,2421.9,2.24445038]
[1726373926818,0.7588,2422.0,2421.9,1.71742201]
[1726373927022,0.7588,2422.0,2421.9,2.24445048]
[1726373927719,3.45916502,2422.0,2421.9,2.24445048]
[1726373929324,3.45916502,2422.0,2421.9,2.24445176]
[1726373929527,3.45916502,2422.0,2421.9,2.24445442]
[1726373932621,3.45916502,2422.0,2421.9,1.83170442]
[1726373932821,3.45916502,2422.0,2421.9,0.52702969]
[1726373933018,3.45916502,2422.0,2421.9,1.83168586]
[1726373933224,3.45916502,2422.0,2421.9,1.30465617]
[1726373933423,3.45916502,2422.0,2421.8,3.09074536]
[1726373933629,2.16235827,2421.9,2421.8,3.09074536]
[1726373933928,2.16235827,2421.9,2421.8,4.95398548]
[1726373934322,2.16235827,2421.9,2421.8,6.25865344]
[1726373934625,2.54995827,2421.9,2421.8,7.26225352]
[1726373934929,2.54995827,2421.9,2421.8,6.25865344]
[1726373936431,2.54995827,2421.9,2421.8,4.95398937]
[1726373936825,2.54995827,2421.9,2421.8,3.93398609]
[1726373937035,2.54995827,2421.9,2421.8,5.41543438]
[1726373937227,2.54995827,2421.9,2421.8,6.25868631]